[Event "FIDE World Cup O12-A 2024"]
[Site "Batumi"]
[Date "2024.06.27"]
[Round "5.1"]
[White "Obidov, Biloliddin"]
[Black "Syed Abdul Khader"]
[Result "1-0"]
[ECO "E01"]
[WhiteElo "1998"]
[BlackElo "2050"]
[Annotator "NA RC"]
[PlyCount "117"]
[EventDate "2024.06.23"]
[EventType "swiss"]
[EventCountry "GEO"]
[SourceTitle "playchess.com"]
[Source "ChessBase"]
[SourceQuality "1"]
[TimeControl "5400+30"]

1. d4 {[%emt 0:00:01]} d5 {[%emt 0:00:07]} 2. Nf3 {[%emt 0:00:05]} Nf6 {[%emt 0:00:07]} 3. c4 {[%emt 0:00:16]} e6 {[%emt 0:01:49]} 4. g3 {[%emt 0:00:06]} dxc4 {[%emt 0:02:56]} 5. Qa4+ {[%emt 0:03:28]} Bd7 {[%emt 0:01:04]} 6. Qxc4 {[%emt 0:00:12]} c5 {[%emt 0:00:16] E01: Catalan: Early deviations.} 7. Nc3 {[%emt 0:02:09] 7.dxc5 is becoming the main line.} Bc6 {[%emt 0:06:30]} 8. dxc5 {[%emt 0:03:08]} Nbd7 {[%emt 0:00:08]} 9. Be3 {[%emt 0:05:31]} Rc8 {[%emt 0:09:37]} 10. Bg2 {[%emt 0:01:59]} Nd5 {[%emt 0:19:35]} ({Black should play} 10... Bxc5 $11 11. Bxc5 Bxf3 12. Bxf3 Rxc5) 11. Nxd5 {[%emt 0:01:11]} Bxd5 $11 {[%emt 0:00:16] is superior.} 12. Qa4 $146 {[%emt 0:01:19]} (12. Qc3 Be7) ({Predecessor:} 12. Qg4 h5 13. Qf4 Bxc5 14. Bxc5 Rxc5 15. O-O O-O 16. e4 Bc6 17. Nd4 e5 18. Nxc6 Rxc6 {0-1 Kurajica,B (2580)-Kovacevic,V (2520) Solin 6th 1998 (6)}) 12... Bc6 {[%emt 0:01:35]} 13. Qc4 {[%emt 0:04:12]} (13. Qxa7 $2 {too greedy.} Ra8 $19) ({White should play} 13. Qf4 $14) 13... Be7 {[%emt 0:07:35]} 14. O-O {[%emt 0:01:18]} O-O {[%emt 0:00:09]} 15. b4 {[%emt 0:07:49]} b6 {[%emt 0:01:38]} 16. a4 {[%emt 0:06:32]} Bf6 {[%emt 0:01:43]} (16... bxc5 $11 17. b5 (17. Bxc5 Nxc5 18. bxc5 Bd5 $17) (17. bxc5 Bd5 $11) 17... Nb6) 17. Ra3 {[%emt 0:01:57]} (17. Rac1 $16) 17... bxc5 {[%emt 0:01:32]} 18. b5 {[%emt 0:00:56]} ({But not} 18. Bxc5 Nxc5 19. bxc5 Qa5 $15) 18... Bd5 {[%emt 0:02:20]} 19. Qc2 {[%emt 0:03:07]} Nb6 {[%emt 0:00:44]} 20. Nd2 {[%emt 0:01:04]} Bd4 {[%emt 0:06:57]} (20... Bxg2 $11 {should be considered.} 21. Kxg2 c4) 21. Bxd5 {[%emt 0:09:19]} Nxd5 {[%emt 0:03:47]} 22. Nc4 {[%emt 0:00:11]} Qf6 $16 {[%emt 0:06:04]} (22... Bxe3 $14 23. Nxe3 c4) 23. Bd2 {[%emt 0:02:58]} Rfd8 {[%emt 0:04:55]} 24. e3 {[%emt 0:04:03]} Be5 {[%emt 0:01:56]} 25. e4 {[%emt 0:08:02]} Nb4 {[%emt 0:00:59]} 26. Qc1 {[%emt 0:01:10]} h6 {[%emt 0:02:57]} 27. Qb1 {[%emt 0:04:08]} Bd4 {[%emt 0:01:08]} 28. a5 {[%emt 0:01:07]} Qe7 {[%emt 0:03:53]} 29. Rb3 {[%emt 0:01:26]} Rb8 {[%emt 0:00:48]} 30. Bxb4 {[%emt 0:00:40]} cxb4 {[%emt 0:00:03]} 31. Rxb4 {[%emt 0:00:22]} Bc5 {[%emt 0:00:37]} 32. Rb3 {[%emt 0:00:38]} Rd4 {[%emt 0:00:44]} 33. Ne5 {[%emt 0:01:52]} Rd2 {[%emt 0:06:47]} 34. Nc6 {[%emt 0:02:46]} Bxf2+ {[%emt 0:00:40]} 35. Rxf2 {[%emt 0:01:30]} Qc5 {[%emt 0:00:03]} 36. Qe1 {[%emt 0:01:57]} Rxf2 {[%emt 0:00:19]} 37. Qxf2 {[%emt 0:00:08]} Rxb5 {[%emt 0:00:06]} 38. Qxc5 {[%emt 0:04:56]} Rxc5 {[%emt 0:00:03]} 39. Rb8+ {[%emt 0:02:37]} Kh7 {[%emt 0:00:02]} 40. Rc8 {[%emt 0:00:17]} a6 {[%emt 0:00:13]} 41. Kf2 {[%emt 0:00:20]} e5 {[%emt 0:00:37]} 42. Kf3 {[%emt 0:01:47]} h5 {[%emt 0:00:06]} 43. Kg2 {[%emt 0:02:43]} g5 {[%emt 0:01:35]} 44. Kh3 {[%emt 0:04:26]} Kh6 {[%emt 0:06:57]} 45. Ne7 {[%emt 0:00:47]} Rxa5 {[%emt 0:00:15]} 46. Rh8+ {[%emt 0:00:20]} Kg7 {[%emt 0:00:06]} 47. Rxh5 {[%emt 0:00:17]} Ra4 {[%emt 0:00:49]} 48. Nf5+ {[%emt 0:00:08]} Kg8 {[%emt 0:00:05]} 49. Rxg5+ {[%emt 0:00:25]} Kf8 {[%emt 0:00:02]} 50. Rh5 {[%emt 0:00:13]} Kg8 {[%emt 0:00:06]} 51. Rh6 {[%emt 0:00:27]} Rxe4 {[%emt 0:00:23]} 52. Rxa6 {[%emt 0:00:12]} Re1 {[%emt 0:00:08]} 53. Kg4 {[%emt 0:00:09]} Re2 {[%emt 0:00:09]} 54. h4 {[%emt 0:00:14]} e4 {[%emt 0:00:28]} 55. Kg5 {[%emt 0:00:08]} Rf2 {[%emt 0:00:06]} 56. Kh6 {[%emt 0:00:26]} f6 {[%emt 0:00:05]} 57. Kg6 {[%emt 0:00:05]} Rd2 {[%emt 0:00:56]} 58. Ra8+ {[%emt 0:00:04]} Rd8 {[%emt 0:00:08]} 59. Rxd8# {[%emt 0:00:02]} 1-0

[Event "FIDE World Cup O12-A 2024"]
[Site "Batumi"]
[Date "2024.06.27"]
[Round "5.2"]
[White "Siddhanth Poonja"]
[Black "Guo, Ethan"]
[Result "0-1"]
[ECO "D02"]
[WhiteElo "1958"]
[BlackElo "2136"]
[Annotator "RC"]
[PlyCount "82"]
[EventDate "2024.06.23"]
[EventType "swiss"]
[EventCountry "GEO"]
[SourceTitle "playchess.com"]
[Source "ChessBase"]
[SourceQuality "1"]
[TimeControl "5400+30"]

1. d4 {[%emt 0:00:41]} Nf6 {[%emt 0:00:04]} 2. Bf4 {[%emt 0:00:05]} d5 {[%emt 0:00:07]} 3. Nf3 {[%emt 0:00:06]} c5 {[%emt 0:00:08]} 4. e3 {[%emt 0:00:05]} Nc6 {[%emt 0:00:07]} 5. Nbd2 {[%emt 0:00:06]} Bg4 {[%emt 0:00:17]} 6. c3 {[%emt 0:00:09]} e6 {[%emt 0:00:16]} 7. Qb3 {[%emt 0:00:09]} Qc8 {[%emt 0:00:13]} 8. Nh4 {[%emt 0:00:05]} Qd7 {[%emt 0:02:07]} 9. h3 {[%emt 0:02:31]} Bh5 {[%emt 0:00:06]} 10. g4 {[%emt 0:07:49]} Bg6 {[%emt 0:00:08]} 11. Nxg6 {[%emt 0:00:06]} hxg6 {[%emt 0:00:06]} 12. Bg2 {[%emt 0:00:12]} cxd4 {[%emt 0:00:19]} 13. exd4 {[%emt 0:05:10]} Be7 {[%emt 0:01:14]} 14. Nf3 {[%emt 0:12:50]} Ne4 {[%emt 0:08:55]} 15. Ne5 {[%emt 0:09:21]} Nxe5 {[%emt 0:00:32]} 16. Bxe5 {[%emt 0:00:15]} O-O {[%emt 0:04:48]} 17. Bxe4 {[%emt 0:11:25]} dxe4 {[%emt 0:00:09]} 18. O-O-O {[%emt 0:01:15]} Bh4 {[%emt 0:08:45]} 19. d5 {[%emt 0:12:08]} exd5 {[%emt 0:03:19]} 20. Rxd5 {[%emt 0:00:18]} Qc6 {[%emt 0:01:20]} 21. Bd4 {[%emt 0:01:34]} Rad8 {[%emt 0:01:34]} 22. Rc5 {[%emt 0:04:47]} Qd6 {[%emt 0:02:44]} 23. Qc2 {[%emt 0:09:45]} Qf4+ {[%emt 0:01:59]} 24. Kb1 {[%emt 0:00:29]} Qf3 {[%emt 0:01:52]} 25. Re1 {[%emt 0:00:40]} Rfe8 {[%emt 0:00:44]} 26. a4 {[%emt 0:03:48]} Qxh3 {[%emt 0:03:40]} 27. g5 {[%emt 0:03:17]} Qf3 {[%emt 0:01:30]} 28. Qe2 {[%emt 0:06:16]} Qg2 {[%emt 0:06:11]} 29. Qf1 {[%emt 0:02:41]} Qf3 {[%emt 0:03:12]} 30. Qh1 {[%emt 0:01:55]} Qd3+ {[%emt 0:00:49]} 31. Ka1 {[%emt 0:00:07]} Rxd4 {[%emt 0:00:54]} 32. cxd4 {[%emt 0:00:06]} Bxf2 {[%emt 0:02:18]} 33. Rc3 {[%emt 0:00:55]} Bxe1 {[%emt 0:02:14]} 34. Qxe1 {[%emt 0:02:47]} Qxd4 {[%emt 0:00:10]} 35. Rh3 {[%emt 0:00:34]} Qxa4+ {[%emt 0:00:35]} 36. Ra3 {[%emt 0:00:22]} Qd4 {[%emt 0:00:32]} 37. Qh4 {[%emt 0:00:16]} Qd1+ {[%emt 0:00:12]} 38. Ka2 {[%emt 0:00:05]} Qd5+ {[%emt 0:00:10]} 39. Ka1 {[%emt 0:00:06]} e3 {[%emt 0:00:06]} 40. Rc3 {[%emt 0:00:12]} e2 {[%emt 0:00:16]} 41. Rc1 {[%emt 0:00:09]} e1=Q {[%emt 0:00:20]} 0-1

[Event "FIDE World Cup O12-A 2024"]
[Site "Batumi"]
[Date "2024.06.27"]
[Round "5.3"]
[White "Wang, Ted"]
[Black "Yin, Zeming"]
[Result "1-0"]
[ECO "B25"]
[WhiteElo "2034"]
[BlackElo "1832"]
[Annotator "NA RC"]
[PlyCount "133"]
[EventDate "2024.06.23"]
[EventType "swiss"]
[EventCountry "GEO"]
[SourceTitle "playchess.com"]
[Source "ChessBase"]
[SourceQuality "1"]
[TimeControl "5400+30"]

1. e4 {[%emt 0:00:12]} c5 {[%emt 0:00:29]} 2. Nf3 {[%emt 0:00:06]} Nc6 {[%emt 0:00:04]} 3. d3 {[%emt 0:00:08]} g6 {[%emt 0:00:26]} 4. g3 {[%emt 0:00:04]} Bg7 {[%emt 0:00:03]} 5. Bg2 {[%emt 0:00:07]} d6 {[%emt 0:00:06]} 6. O-O {[%emt 0:00:03]} Nf6 {[%emt 0:00:47]} 7. Nc3 {[%emt 0:01:04] 7.Re1 gains popularity.} e5 {[%emt 0:01:45] B25: Closed Sicilian: 3 g3, lines without early Be3.} 8. Nd2 {[%emt 0:00:41]} Bg4 {[%emt 0:02:05]} 9. f3 {[%emt 0:00:12]} Be6 {[%emt 0:00:14]} 10. Nc4 {[%emt 0:00:30]} d5 $146 {[%emt 0:02:46]} ({Predecessor:} 10... O-O 11. Ne3 d5 12. exd5 Nxd5 13. Nexd5 Bxd5 14. Nxd5 Qxd5 15. f4 Qd4+ 16. Kh1 exf4 {½-½ Fressinet,L (2652)-Abasov,N (2632) FIDE World Cup 2023 (2.4)}) 11. exd5 {[%emt 0:01:14]} Nxd5 {[%emt 0:00:06]} 12. Ne4 {[%emt 0:00:16]} O-O {[%emt 0:10:45]} 13. Nxc5 {[%emt 0:01:20]} Bc8 {[%emt 0:02:20]} 14. Kh1 {[%emt 0:02:55]} (14. c3 $14) 14... Nb6 {[%emt 0:04:28]} (14... Qe7 $11 {is more appropriate.} 15. Ne4 f5) 15. Nxb6 {[%emt 0:07:16]} Qxb6 {[%emt 0:03:19]} 16. Na4 {[%emt 0:00:54]} Qd4 {[%emt 0:02:54]} 17. Nc3 {[%emt 0:00:14]} Be6 {[%emt 0:00:59]} 18. f4 {[%emt 0:05:46]} h5 {[%emt 0:04:47]} (18... Rae8 $11) 19. fxe5 {[%emt 0:02:18]} Nxe5 {[%emt 0:01:25]} 20. Qe1 {[%emt 0:04:50]} (20. Bg5 $16) 20... Rae8 {[%emt 0:05:46]} (20... Rac8 $11) 21. Be3 {[%emt 0:01:29]} Qb4 $1 {[%emt 0:02:55]} 22. Qc1 {[%emt 0:10:14]} Ng4 {[%emt 0:04:11] [#]} 23. a3 {[%emt 0:02:46]} ({Better is} 23. Bf4 $1 $16) 23... Qa5 {[%emt 0:07:07]} 24. Bg5 {[%emt 0:08:07]} Qb6 {[%emt 0:13:10]} 25. h3 $16 {[%emt 0:03:03]} Nf2+ {[%emt 0:09:23]} 26. Kh2 {[%emt 0:00:23]} Bxh3 {[%emt 0:01:40]} 27. Rxf2 {[%emt 0:14:51]} Qxf2 {[%emt 0:00:35]} 28. Kxh3 {[%emt 0:00:06]} Bxc3 {[%emt 0:02:25]} 29. bxc3 {[%emt 0:00:09]} f6 {[%emt 0:10:34]} 30. Qf4 {[%emt 0:07:49]} fxg5 {[%emt 0:06:01]} 31. Qxg5 {[%emt 0:01:16]} Qf5+ {[%emt 0:00:21]} 32. Qxf5 {[%emt 0:00:49]} Rxf5 {[%emt 0:00:06]} 33. Bxb7 {[%emt 0:00:06]} Rf2 {[%emt 0:00:07]} 34. Be4 {[%emt 0:00:16]} Rxc2 {[%emt 0:00:48]} 35. c4 {[%emt 0:00:05]} Rxe4 {[%emt 0:01:29]} 36. dxe4 {[%emt 0:00:12]} Rxc4 {[%emt 0:00:01]} 37. Re1 {[%emt 0:00:26]} Rc3 {[%emt 0:00:24]} 38. a4 {[%emt 0:00:44]} g5 {[%emt 0:00:14]} 39. Rd1 {[%emt 0:01:05]} Rc7 {[%emt 0:01:48]} 40. Rd5 {[%emt 0:00:26]} Rg7 {[%emt 0:00:52]} 41. e5 {[%emt 0:00:09]} Re7 {[%emt 0:00:41]} 42. e6 {[%emt 0:00:29]} Rxe6 {[%emt 0:00:15]} 43. Rxg5+ {[%emt 0:00:08]} Kf7 {[%emt 0:00:35]} 44. Rxh5 {[%emt 0:00:02]} Ra6 {[%emt 0:00:15]} 45. a5 {[%emt 0:00:28]} Kg6 {[%emt 0:00:38]} 46. Rb5 {[%emt 0:00:12]} Rf6 {[%emt 0:00:18]} 47. Kg4 {[%emt 0:00:16]} Rc6 {[%emt 0:00:07]} 48. Kh4 {[%emt 0:00:13]} Rc4+ {[%emt 0:00:21]} 49. g4 {[%emt 0:00:05]} Ra4 {[%emt 0:00:07]} 50. Kg3 {[%emt 0:00:30]} Ra3+ {[%emt 0:01:00]} 51. Kf4 {[%emt 0:00:14]} Kf6 {[%emt 0:00:46]} 52. Rf5+ {[%emt 0:00:26]} Kg6 {[%emt 0:00:07]} 53. Rc5 {[%emt 0:00:05]} Ra1 {[%emt 0:00:21]} 54. Rc6+ {[%emt 0:00:06]} Kf7 {[%emt 0:00:12]} 55. a6 {[%emt 0:00:11]} Ke8 {[%emt 0:00:37]} 56. Kf5 {[%emt 0:00:27]} Kd7 {[%emt 0:00:16]} 57. Rf6 {[%emt 0:00:04]} Ke7 {[%emt 0:00:30]} 58. g5 {[%emt 0:00:22]} Ke8 {[%emt 0:01:06]} 59. Kg6 {[%emt 0:00:08]} Ra5 {[%emt 0:00:10]} 60. Kh6 {[%emt 0:00:58]} Ke7 {[%emt 0:00:29]} 61. Rg6 {[%emt 0:00:14]} Kf8 {[%emt 0:00:19]} 62. Rc6 {[%emt 0:00:10]} Ke8 {[%emt 0:01:45]} 63. g6 {[%emt 0:00:15]} Ra1 {[%emt 0:00:10]} 64. g7 {[%emt 0:00:39]} Rh1+ {[%emt 0:00:08]} 65. Kg6 {[%emt 0:00:04]} Rg1+ {[%emt 0:00:08]} 66. Kh7 {[%emt 0:00:06]} Kf7 {[%emt 0:00:33]} 67. g8=Q+ {[%emt 0:00:12]} 1-0

[Event "FIDE World Cup O12-A 2024"]
[Site "Batumi"]
[Date "2024.06.27"]
[Round "5.4"]
[White "Bulgak, Damir"]
[Black "Mamikonyan, Artem T"]
[Result "1-0"]
[ECO "B14"]
[WhiteElo "1931"]
[BlackElo "1855"]
[Annotator "NA RC"]
[PlyCount "81"]
[EventDate "2024.06.23"]
[EventType "swiss"]
[EventCountry "GEO"]
[SourceTitle "playchess.com"]
[Source "ChessBase"]
[SourceQuality "1"]
[TimeControl "5400+30"]

1. e4 {[%emt 0:00:07]} c6 {[%emt 0:00:05]} 2. d4 {[%emt 0:00:08]} d5 {[%emt 0:00:08]} 3. exd5 {[%emt 0:00:07]} cxd5 {[%emt 0:00:07]} 4. c4 {[%emt 0:00:01]} Nf6 {[%emt 0:00:11]} 5. Nc3 {[%emt 0:00:04]} g6 {[%emt 0:00:14]} 6. cxd5 {[%emt 0:02:26]} Nxd5 {[%emt 0:00:30]} 7. Bc4 {[%emt 0:00:08]} Nb6 {[%emt 0:00:37]} 8. Bb5+ {[%emt 0:16:36]} Bd7 {[%emt 0:10:46]} 9. Be2 {[%emt 0:07:03]} Bg7 {[%emt 0:02:17]} 10. Nf3 {[%emt 0:01:03]} O-O {[%emt 0:00:42]} 11. O-O {[%emt 0:09:56]} e6 {[%emt 0:10:30]} 12. Bg5 {[%emt 0:03:54]} Qc7 {[%emt 0:01:06]} 13. Qd2 {[%emt 0:29:00]} Bc6 {[%emt 0:07:15]} 14. Ne5 $11 {[%emt 0:05:19]} f6 {[%emt 0:16:18]} 15. Nxc6 {[%emt 0:00:08]} Nxc6 {[%emt 0:00:14]} 16. Bf4 {[%emt 0:06:33]} Qd7 {[%emt 0:00:18]} 17. Rad1 {[%emt 0:00:04]} Rad8 {[%emt 0:00:25]} 18. Qe3 {[%emt 0:00:28]} a6 {[%emt 0:07:53]} 19. Bf3 {[%emt 0:03:40]} Nxd4 {[%emt 0:01:05]} 20. Rxd4 {[%emt 0:00:40]} Qxd4 {[%emt 0:00:22]} 21. Qxe6+ {[%emt 0:00:05]} Kh8 {[%emt 0:00:11]} 22. Be3 {[%emt 0:00:01]} Qd6 {[%emt 0:00:17]} 23. Qxd6 {[%emt 0:00:04]} Rxd6 {[%emt 0:00:24]} 24. Bc5 {[%emt 0:00:29]} Nc4 {[%emt 0:05:20]} 25. Bxd6 {[%emt 0:02:58]} Nxd6 {[%emt 0:00:07]} 26. Rd1 {[%emt 0:12:28]} Rd8 {[%emt 0:01:09]} 27. Na4 {[%emt 0:00:30]} f5 {[%emt 0:02:18]} 28. b3 {[%emt 0:00:00]} Nf7 {[%emt 0:02:57]} 29. Rc1 {[%emt 0:00:00]} b5 {[%emt 0:00:41]} 30. Nc5 {[%emt 0:00:00]} Rc8 {[%emt 0:00:38]} 31. Bb7 {[%emt 0:00:00]} Rc7 {[%emt 0:00:17]} 32. b4 {[%emt 0:00:00]} Nd6 {[%emt 0:07:57]} 33. Bxa6 {[%emt 0:00:00]} Rc6 {[%emt 0:00:12]} 34. Rd1 {[%emt 0:01:09]} Bc3 {[%emt 0:00:59]} 35. a3 {[%emt 0:00:10]} Bb2 {[%emt 0:00:31]} 36. Rd3 {[%emt 0:00:46]} Bc1 {[%emt 0:05:13]} 37. Kf1 {[%emt 0:00:56]} Rb6 {[%emt 0:00:09]} 38. f3 {[%emt 0:01:09]} Nc4 {[%emt 0:00:46]} 39. a4 {[%emt 0:00:55]} Ba3 {[%emt 0:08:18]} 40. Bxb5 {[%emt 0:00:47]} Bxb4 {[%emt 0:00:05]} 41. Nd7 {[%emt 0:00:12]} 1-0

[Event "FIDE World Cup O12-A 2024"]
[Site "Batumi"]
[Date "2024.06.27"]
[Round "5.5"]
[White "Yang, ZiLong"]
[Black "Sobirov, Afruzbek"]
[Result "1-0"]
[ECO "C11"]
[WhiteElo "1874"]
[BlackElo "1789"]
[Annotator "NA RC"]
[PlyCount "93"]
[EventDate "2024.06.23"]
[EventType "swiss"]
[EventCountry "GEO"]
[SourceTitle "playchess.com"]
[Source "ChessBase"]
[SourceQuality "1"]
[TimeControl "5400+30"]

1. e4 {[%emt 0:00:03]} e6 {[%emt 0:00:07]} 2. d4 {[%emt 0:00:08]} d5 {[%emt 0:00:07]} 3. Nc3 {[%emt 0:00:04]} Nf6 {[%emt 0:00:06]} 4. e5 {[%emt 0:00:03]} Nfd7 {[%emt 0:00:06]} 5. f4 {[%emt 0:00:04]} c5 {[%emt 0:00:06]} 6. Nf3 {[%emt 0:00:02]} Nc6 {[%emt 0:00:09]} 7. Be3 {[%emt 0:00:06]} Qb6 {[%emt 0:00:04]} 8. Na4 {[%emt 0:00:23]} Qa5+ {[%emt 0:00:07]} 9. c3 {[%emt 0:00:07]} b6 {[%emt 0:01:22]} 10. Bd2 {[%emt 0:00:42]} c4 {[%emt 0:00:00]} 11. b4 {[%emt 0:00:35]} Nxb4 {[%emt 0:02:22] 11...Qa6 is not played anymore. C11: French: Classical System: 4 e5 and 4 Bg5 dxe4.} 12. cxb4 {[%emt 0:00:32]} Bxb4 {[%emt 0:00:07]} 13. Qc2 {[%emt 0:00:07]} Bxd2+ {[%emt 0:01:13]} 14. Nxd2 {[%emt 0:00:05]} b5 {[%emt 0:00:13]} 15. Nc3 {[%emt 0:00:04]} b4 {[%emt 0:00:14]} 16. Nd1 {[%emt 0:00:51]} Qb6 {[%emt 0:00:58]} 17. Nf3 {[%emt 0:00:10]} O-O {[%emt 0:00:30]} 18. Be2 {[%emt 0:01:05]} a5 {[%emt 0:03:04]} 19. O-O {[%emt 0:01:21]} Nb8 {[%emt 0:03:09]} 20. Nf2 $146 {[%emt 0:13:53]} ({Predecessor:} 20. Ne3 Nc6 21. Rfd1 f6 22. exf6 gxf6 23. Qd2 a4 24. f5 Kh8 25. Kh1 Ne7 26. fxe6 Bxe6 {½-½ Cole,S (2215)-Gittens,M (2167) EU-ch 2022 pr03 email}) 20... Nc6 {[%emt 0:00:44]} 21. Qd2 {[%emt 0:00:02]} Ba6 {[%emt 0:02:09]} 22. Qe3 {[%emt 0:01:42]} b3 {[%emt 0:03:08]} (22... Rfb8 $11) 23. a3 {[%emt 0:06:57]} Rab8 {[%emt 0:04:22]} (23... Rfb8 $11) 24. Rab1 $11 {[%emt 0:05:12]} Qa7 {[%emt 0:01:52]} 25. Ng4 {[%emt 0:35:11]} Ne7 {[%emt 0:02:09]} 26. Qc3 {[%emt 0:05:43]} a4 {[%emt 0:05:58]} 27. Ne3 {[%emt 0:00:47]} Nf5 {[%emt 0:07:33]} 28. Nxf5 {[%emt 0:00:53]} exf5 {[%emt 0:00:17]} 29. Rb2 {[%emt 0:01:26]} Qe7 {[%emt 0:04:07]} 30. Ra1 {[%emt 0:00:04]} Rfc8 {[%emt 0:00:59]} 31. g3 {[%emt 0:01:24]} h6 {[%emt 0:00:36]} 32. Bf1 {[%emt 0:02:58]} Rb5 {[%emt 0:00:47]} 33. Nd2 {[%emt 0:00:53]} Kh8 {[%emt 0:01:32]} 34. Bh3 {[%emt 0:01:04]} g6 {[%emt 0:00:57]} 35. Nf3 {[%emt 0:01:32]} Rc6 {[%emt 0:03:21]} 36. Nh4 {[%emt 0:00:36]} Bc8 {[%emt 0:01:16]} 37. Ng2 {[%emt 0:00:53]} f6 {[%emt 0:25:03]} 38. Nh4 {[%emt 0:00:57]} Kg7 {[%emt 0:00:59]} 39. Nf3 {[%emt 0:00:08]} g5 {[%emt 0:01:31]} 40. Bg2 {[%emt 0:00:20]} Rc7 {[%emt 0:03:55]} 41. exf6+ {[%emt 0:00:58]} Qxf6 {[%emt 0:01:07]} 42. Re2 {[%emt 0:01:35]} Ba6 {[%emt 0:00:48]} 43. Rae1 {[%emt 0:00:43]} Qd6 {[%emt 0:02:00]} 44. Re6 {[%emt 0:00:56]} Qxa3 {[%emt 0:00:37]} 45. Qe3 {[%emt 0:00:28]} Rf7 {[%emt 0:06:11]} 46. Qe5+ {[%emt 0:00:08]} Kh7 {[%emt 0:01:14]} 47. Rxh6+ {[%emt 0:00:33]} 1-0

[Event "FIDE World Cup O12-A 2024"]
[Site "Batumi"]
[Date "2024.06.27"]
[Round "5.6"]
[White "Kristesiashvili, Andria"]
[Black "Kleschevnikov, Arseny"]
[Result "0-1"]
[ECO "B95"]
[WhiteElo "1728"]
[BlackElo "1895"]
[Annotator "NA RC"]
[PlyCount "78"]
[EventDate "2024.06.23"]
[EventType "swiss"]
[EventCountry "GEO"]
[SourceTitle "playchess.com"]
[Source "ChessBase"]
[SourceQuality "1"]
[TimeControl "5400+30"]

1. e4 {[%emt 0:00:01]} c5 {[%emt 0:00:05]} 2. Nf3 {[%emt 0:00:03]} d6 {[%emt 0:00:04]} 3. d4 {[%emt 0:00:05]} cxd4 {[%emt 0:00:05]} 4. Nxd4 {[%emt 0:00:05]} Nf6 {[%emt 0:00:05]} 5. Nc3 {[%emt 0:00:05]} a6 {[%emt 0:00:03]} 6. Bg5 {[%emt 0:00:04]} e6 {[%emt 0:00:51]} 7. Qf3 {[%emt 0:00:26]} Nbd7 {[%emt 0:02:24]} 8. O-O-O {[%emt 0:06:49]} Qc7 {[%emt 0:02:35]} 9. g4 {[%emt 0:07:54]} b5 {[%emt 0:01:07]} 10. Bg2 {[%emt 0:07:58]} Bb7 {[%emt 0:21:27]} 11. Qe2 {[%emt 0:03:16]} Be7 {[%emt 0:05:34]} 12. Rhe1 {[%emt 0:09:27]} (12. a3 $1 $11) 12... b4 {[%emt 0:05:19]} 13. Nb1 {[%emt 0:00:54]} O-O $17 {[%emt 0:16:24]} 14. Bd2 {[%emt 0:07:01]} Nc5 {[%emt 0:14:56]} 15. f3 {[%emt 0:06:03]} a5 {[%emt 0:00:29]} 16. g5 {[%emt 0:01:20]} Ba6 {[%emt 0:04:05]} 17. Nb5 {[%emt 0:01:10]} Bxb5 {[%emt 0:04:46]} 18. Qxb5 {[%emt 0:00:07]} Rfc8 {[%emt 0:00:10]} 19. c3 {[%emt 0:01:27]} Nfd7 {[%emt 0:00:48]} 20. f4 {[%emt 0:02:23]} Rab8 {[%emt 0:00:32]} 21. Qe2 {[%emt 0:00:07]} Na4 {[%emt 0:02:29]} 22. e5 {[%emt 0:02:34]} dxe5 {[%emt 0:02:37]} 23. Be4 {[%emt 0:02:01]} bxc3 {[%emt 0:02:22]} 24. Bxc3 {[%emt 0:01:37]} Rxb2 {[%emt 0:01:22]} 25. Bxh7+ {[%emt 0:03:50]} Kxh7 {[%emt 0:01:40]} 26. Qh5+ {[%emt 0:03:44]} Kg8 {[%emt 0:00:06]} 27. Rd3 {[%emt 0:00:20]} Rxb1+ {[%emt 0:00:41]} 28. Kxb1 {[%emt 0:00:07]} Nxc3+ {[%emt 0:00:03]} 29. Ka1 {[%emt 0:00:41]} Qc4 {[%emt 0:00:57]} 30. Rd2 {[%emt 0:00:18]} Na4 {[%emt 0:00:20]} 31. Rb1 {[%emt 0:00:47]} Qc3+ {[%emt 0:00:09]} 32. Rdb2 {[%emt 0:00:06]} Nxb2 {[%emt 0:00:06]} 33. Rxb2 {[%emt 0:00:05]} Ba3 {[%emt 0:00:13]} 34. Qe2 {[%emt 0:00:12]} Bxb2+ {[%emt 0:00:20]} 35. Qxb2 {[%emt 0:00:05]} Qe1+ {[%emt 0:00:02]} 36. Qb1 {[%emt 0:00:08]} Rc1 {[%emt 0:00:03]} 37. Kb2 {[%emt 0:00:10]} Rxb1+ {[%emt 0:00:04]} 38. Kc2 {[%emt 0:00:07]} e4 {[%emt 0:00:04]} 39. a4 {[%emt 0:00:06]} Qc1# {[%emt 0:00:06]} 0-1